Cogmind - Beta 16 @@@ ROGUE MODE // 2025.12.08 @ 15:12:05 Player: Andru7428 Result: Destroyed by P-80 Master with Gamma Rifle Performance ------------- Evolutions (9) 4500 Regions Visited (28) 5600 Robots Destroyed (290) 1450 Value Destroyed (13381) 13381 Prototype IDs (75) 1500 Alien Tech Used (2) 400 Bonus (4095) 4095 TOTAL SCORE: 30926 Bonus ------- High Alert Combat Kills 688 Follower Combat Kills 1222 Awakened Behemoth Slayer 1000 Network Hubs Disabled 400 Aligned with FarCom 300 Met Zhirov 300 Built Enhanced Grunts 300 A7 Reached Mainframe 300 Read Decrypted Archives 300 Friendly Fire -715 Cogmind --------- Core Integrity 0/1600 Matter 206/300 Energy 100/100 System Corruption 20% Temperature Cool (0) Movement Core (150) Ox2 Location -1/Access Parts ------- > --- POWER (2) -------- (None) > --- PROPULSION (5) --- Improved Gyrokinetic Inverter > --- UTILITY (15) ----- (None) > --- WEAPON (3) ------- RU-N14's Throwing Claymores > --- INVENTORY (5) ---- Biometal Leg Heavy Shield Leg Advanced Matter Compressor (400) Peak State ------------ > --- POWER ------------ Light Particle Reactor Quantum Reactor > --- PROPULSION ------- Medium Armored Exoskeleton Enhanced Armored Leg Improved Thunder Leg > --- UTILITY ---------- Large Storage Unit Experimental Matter Compressor Machine Analyzer Enhanced Optical Array Improved Melee Analysis Suite Experimental Core Analyzer Nanoactuators Advanced Actuator Array Experimental Reaction Control System Advanced Phase Shifter Centrium Medium Armor Plating Experimental Thermal Shield Advanced Component Analysis Suite Hacking Drone Bay > --- WEAPON ----------- Impact Mace Shock Maul Shock Maul > --- INVENTORY -------- Light Quantum Reactor Advanced Myomer Leg Biometal Leg Advanced Matter Compressor Advanced Signal Interpreter Makeshift ECM Suite Experimental Reaction Control System Advanced Trap Extractor Advanced Variable Charge Gun Enhanced Nova Cannon Micro-nuke Launcher RU-N14's Throwing Claymores CR-A16's Behemoth Slayer [Rating: 176] Favorites ----------- Power Light Particle Reactor Engine Heavy Deuterium Engine Power Core Neutrino Core Reactor Light Particle Reactor Propulsion Medium Armored Exoskeleton Treads Armored Treads Leg Medium Armored Exoskeleton Hover Unit Improved Gyrokinetic Inverter Utility Enhanced Optical Array Device Microactuators Storage Large Storage Unit Processor Enhanced Optical Array Hackware System Shield Protection Centrium Medium Armor Plating Weapon Impact Mace Energy Gun Medium Laser Energy Cannon Heavy Phase Cannon Ballistic Gun Enhanced Autogun Ballistic Cannon Hardcell Cannon Launcher Long-range Missile Launcher Special Weapon RU-N14's Throwing Claymores Impact Weapon Impact Mace Slashing Weapon Longsword +1 Piercing Weapon CR-A16's Behemoth Slayer Build | -11 -10 -10 -10 -9 -8 -8 -8 -8 -6 -6 -6 -6 -6 -6 -5 -5 -5 -5 -5 -4 -4 -4 -4 -4 -4 -3 -2 -1 ------- Run | Yrd Mat Min Exi Min Mat Sto Rec Scr Fac Was Fac Low Low Zio Pro Fac Upp Upp Zhi Pro Fac Ext Cet Arc Hub Res Res Acc Slots Evolved 18 | . . . . . 4 . . . 4 . . . . . . 2 . . . . 2 . . . . 2 2 2 Power 1 | . . . . . . . . . . . . . . . . . . . . . . . . . . . 1 . Propulsion 3 | . . . . . 1 . . . 1 . . . . . . 1 . . . . . . . . . . . . Utility 13 | . . . . . 3 . . . 3 . . . . . . 1 . . . . 1 . . . . 2 1 2 Weapon 1 | . . . . . . . . . . . . . . . . . . . . . 1 . . . . . . . Parts Attached 183 | 8 5 5 1 1 4 24 4 1 16 10 1 2 3 7 3 13 5 . 2 2 3 4 4 . 3 7 15 30 Power 20 | 1 1 1 . . 1 2 . . 2 . . . . . 1 2 . . 1 . . . . . . 1 3 4 Engine 7 | 1 1 1 . . 1 1 . . 1 . . . . . 1 . . . . . . . . . . . . . Core 3 | . . . . . . 1 . . 1 . . . . . . 1 . . . . . . . . . . . . Reactor 10 | . . . . . . . . . . . . . . . . 1 . . 1 . . . . . . 1 3 4 Propulsion 31 | 3 . 3 1 . 1 5 . . 3 2 1 . . . . 1 . . . . . . . . 1 2 2 6 Treads 14 | 2 . 3 1 . 1 4 . . 3 . . . . . . . . . . . . . . . . . . . Leg 15 | 1 . . . . . . . . . 2 1 . . . . 1 . . . . . . . . 1 2 2 5 Wheel . | . . . . . . . . . . . . . . . . . . . . . . . . . . . . . Hover 2 | . . . . . . 1 . . . . . . . . . . . . . . . . . . . . . 1 Flight . | . . . . . . . . . . . . . . . . . . . . . . . . . . . . . Utility 91 | 2 2 . . . 2 5 4 1 6 7 . 2 2 5 1 6 4 . 1 2 3 3 2 . 2 4 8 17 Device 42 | 1 1 . . . . 1 1 . 1 2 . 2 . 1 . 5 3 . 1 2 3 1 . . 1 3 5 8 Storage 9 | 1 1 . . . 1 . 1 . . 1 . . . . . 1 . . . . . . . . 1 . 1 1 Processor 15 | . . . . . . 1 . . 2 2 . . 2 2 . . . . . . . . . . . . 2 4 Hackware 3 | . . . . . 1 . . . . . . . . 1 . . . . . . . . . . . . . 1 Protection 22 | . . . . . . 3 2 1 3 2 . . . 1 1 . 1 . . . . 2 2 . . 1 . 3 Artifact . | . . . . . . . . . . . . . . . . . . . . . . . . . . . . . Weapon 41 | 2 2 1 . 1 . 12 . . 5 1 . . 1 2 1 4 1 . . . . 1 2 . . . 2 3 Energy Gun 8 | . 1 . . . . 4 . . . . . . . . . 1 . . . . . . 2 . . . . . Energy Cannon 4 | . . . . . . 1 . . . . . . 1 . . 1 . . . . . . . . . . . 1 Ballistic Gun 8 | 2 . 1 . . . 5 . . . . . . . . . . . . . . . . . . . . . . Ballistic Cannon 4 | . . . . . . . . . 4 . . . . . . . . . . . . . . . . . . . Launcher 5 | . 1 . . 1 . 1 . . . . . . . . . 1 . . . . . . . . . . . 1 Special Weapon 2 | . . . . . . . . . . . . . . 1 . . 1 . . . . . . . . . . . Impact Weapon 6 | . . . . . . . . . 1 1 . . . 1 . 1 . . . . . . . . . . 2 . Slashing Weapon 2 | . . . . . . 1 . . . . . . . . . . . . . . . . . . . . . 1 Piercing Weapon 2 | . . . . . . . . . . . . . . . 1 . . . . . . 1 . . . . . . Special Melee Weapon . | . . . . . . . . . . . . . . . . . . . . . . . . . . . . . Unidentified Prototypes 34 | . . . . . . 8 3 . 2 1 1 . . 6 . 1 . . 3 . . . 2 . . . 4 3 Parts Lost 42 | . . . . . . . . . 2 . . . 1 1 1 1 . . . . . 1 . 1 . . 9 25 Power 8 | . . . . . . . . . . . . . . . 1 . . . . . . 1 . . . . 1 5 Propulsion 4 | . . . . . . . . . . . . . . . . . . . . . . . . . . . 1 3 Utility 24 | . . . . . . . . . 1 . . . 1 1 . 1 . . . . . . . . . . 6 14 Weapon 6 | . . . . . . . . . 1 . . . . . . . . . . . . . . 1 . . 1 3 Highest Loss Streak 5 | . . . . . . . . . 1 . . . 1 1 1 1 . . . . . 1 . 1 . . 3 5 To Critical Strikes . | . . . . . . . . . . . . . . . . . . . . . . . . . . . . . Average Backups 14 | 4 9 10 9 10 10 17 20 20 19 16 14 14 13 13 13 14 15 15 15 15 14 14 14 15 14 14 14 13 Power . | . 1 1 1 1 1 1 1 1 1 1 1 1 1 1 . . 1 1 1 1 1 . . 1 1 1 . . Propulsion 2 | 3 4 4 3 3 2 3 3 2 2 3 2 2 2 2 2 2 2 2 2 2 2 2 2 2 1 1 1 2 Utility 5 | . 2 3 3 3 3 4 6 6 9 6 6 6 5 6 6 5 5 6 5 5 5 5 5 6 6 6 6 5 Weapon 5 | . 1 2 2 3 3 8 10 10 6 5 5 5 5 4 5 5 5 5 5 5 4 4 4 5 4 4 4 4 Tool/Special . | . . . . . . . . . . . . . . . . . . . . . . . . . . . . . Unused Backups 50 | . 9 1 . . . 9 . 1 6 3 3 . . 3 . 3 . . . . 1 2 1 . . . 3 5 Power 4 | . 1 . . . . 1 . . . . . . . . . 2 . . . . . . . . . . . . Propulsion 21 | . 7 . . . . 2 . 1 . 2 2 . . . . . . . . . . 2 . . . . 2 3 Utility 11 | . . 1 . . . 2 . . 1 1 1 . . 1 . 1 . . . . 1 . . . . . . 2 Weapon 13 | . 1 . . . . 4 . . 5 . . . . 2 . . . . . . . . . . . . 1 . Tool/Special 1 | . . . . . . . . . . . . . . . . . . . . . . . 1 . . . . . Average Slot Usage (%) 87 | . 99 100 100 100 75 96 100 100 99 89 86 86 85 85 86 83 77 76 76 76 77 78 84 84 84 89 84 79 Engine 3 | . 14 14 14 14 9 7 9 9 3 6 6 6 6 6 6 . . . . . . . . . . . . . Reactor 2 | . . . . . . . . . . . . . . . . 2 . . 2 5 5 5 5 5 5 4 7 7 Treads 8 | . 28 28 28 28 24 27 27 27 26 7 . . . . . . . . . . . . . . . . . . Leg 8 | . . . . . . . . . . 9 13 13 13 13 13 12 11 11 11 11 10 10 10 10 10 13 12 11 Device 15 | . 14 14 14 14 9 9 9 9 6 12 13 19 13 12 11 17 17 17 17 17 20 21 21 21 21 23 21 18 Storage 6 | . 14 14 14 14 9 9 9 9 6 6 6 6 6 6 6 5 5 5 5 5 5 5 5 5 5 4 4 6 Processor 13 | . . . . . . 7 9 9 12 13 13 13 19 20 20 17 17 17 17 17 15 15 15 15 15 14 16 18 Protection 9 | . . . . . . 7 9 18 25 20 20 13 13 13 14 9 5 5 5 5 4 5 10 10 10 13 9 3 Energy Gun 1 | . 4 13 14 14 9 1 . . . . . . . . . . 3 4 . . . . 1 . . . . . Ballistic Gun 4 | . 23 14 14 14 9 16 18 18 2 . . . . . . . . . . . . . . . . . . . Impact Weapon 5 | . . . . . . . . . . 4 6 6 6 6 5 5 5 5 5 5 10 10 10 10 9 8 6 10 Slashing Weapon 2 | . . . . . . . . . 3 5 6 6 5 5 4 3 1 . 5 5 4 4 4 5 . . . 1 Peak Build Rating 176 | 7 10 11 10 12 17 40 54 49 79 87 83 83 78 88 90 110 109 106 107 108 121 121 129 125 129 152 162 176 Average Rating 91 | 5 8 9 9 11 15 30 40 48 73 81 82 78 76 81 84 103 105 105 105 107 115 116 122 125 125 144 149 152 On Entrance 75 | . 7 8 9 10 12 17 39 49 49 79 83 83 78 77 84 85 108 106 106 107 107 117 110 125 117 129 147 150 Avg Prop Armor Cover (%) 5 | 10 . . . . . . 8 . . . . . . . . . . . . . . . . . . . . 4 Naked Turns 41 | . . . . . . . . . . . . . . . . . . . . . . . . . . . . 41 Heaviest Build 99 | 15 21 22 22 22 54 59 60 60 83 81 64 65 65 60 62 72 77 81 72 73 84 82 76 74 74 82 99 98 Greatest Support 120 | 40 40 40 40 40 60 62 60 60 98 98 65 65 65 65 65 86 86 86 86 86 86 86 86 86 91 98 98 120 Greatest Overweight (x) 2 | . . . . . . . 1 . 1 1 . . . . . . . . . . . . . . . . 1 2 Average Overweight (x) . | . . . . . . . . . . . . . . . . . . . . . . . . . . . . . Largest Inventory Capacity 20 | 8 10 10 10 10 20 20 20 20 20 20 15 15 15 15 15 15 15 15 15 15 15 15 15 15 15 15 15 15 Average Capacity 15 | 7 9 10 10 10 17 20 20 20 20 16 15 15 15 15 15 15 15 15 15 15 15 15 15 15 15 15 15 14 Most Carried 20 | 8 10 10 10 10 12 20 20 20 20 20 15 15 15 15 15 15 15 15 15 15 15 15 15 15 15 15 15 15 Average Carried 14 | 4 9 9 9 10 10 17 20 19 19 16 14 15 14 14 14 14 15 15 14 14 14 14 14 15 14 14 14 13 Final Capacity 20 | 8 10 10 10 10 20 20 20 20 20 15 15 15 15 15 15 15 15 15 15 15 15 15 15 15 15 15 15 5 Final Carried 20 | 6 10 10 10 10 12 20 20 20 20 15 15 15 15 15 15 15 15 15 15 15 15 13 15 15 15 15 14 4 Class Distribution -------------------- 49% | Gladiator 31% | Mutant 8% | Scavenger-Mutant 6% | Commander-Gladiator Dominant Class ---------------- Mutant | -10/Materials Scavenger-Mutant | -10/Mines Scavenger-Mutant | -10/Exiles Scavenger-Mutant | -9/Mines Mutant | -8/Materials Mutant | -8/Storage Mutant | -8/Recycling Mutant | -8/Scraptown Mutant | -6/Factory Gladiator | -6/Waste Gladiator | -6/Factory Gladiator | -6/Lower Caves Gladiator | -6/Lower Caves Gladiator | -6/Zion Gladiator | -5/Proximity Caves Gladiator | -5/Factory Mutant | -5/Upper Caves Mutant | -5/Upper Caves Gladiator | -5/Zhirov Gladiator | -4/Proximity Caves Gladiator | -4/Factory Commander-Gladiator | -4/Extension Gladiator | -4/Cetus Commander-Gladiator | -4/Archives Gladiator | -4/Hub_04(d) Gladiator | -3/Research Gladiator | -2/Research Gladiator | -1/Access Resources | -11 -10 -10 -10 -9 -8 -8 -8 -8 -6 -6 -6 -6 -6 -6 -5 -5 -5 -5 -5 -4 -4 -4 -4 -4 -4 -3 -2 -1 ----------- Run | Yrd Mat Min Exi Min Mat Sto Rec Scr Fac Was Fac Low Low Zio Pro Fac Upp Upp Zhi Pro Fac Ext Cet Arc Hub Res Res Acc Matter Collected 7307 | 317 350 234 . . 78 831 67 20 1027 281 7 40 276 54 156 633 149 83 123 58 88 325 50 32 91 295 755 887 Remotely . | . . . . . . . . . . . . . . . . . . . . . . . . . . . . . Salvage Created 14338 | 94 387 197 . 9 . 680 . . 840 338 44 325 382 . 244 1315 196 88 263 179 257 1158 123 32 788 731 2986 2682 Parts 499 | 4 28 16 . 3 . 44 . . 38 8 7 9 9 . 14 44 13 6 2 6 11 44 4 3 22 26 73 65 Haulers Intercepted 19 | . 2 . . . . 5 . . 1 . . . . . . 4 . . . . 1 . . . . 1 5 . Recyclers Shooed 4 | . . 1 . . . . . . 1 . . . . . . 1 . . . . . . . . 1 . . . Parts Field Recycled . | . . . . . . . . . . . . . . . . . . . . . . . . . . . . . Retrieved Matter . | . . . . . . . . . . . . . . . . . . . . . . . . . . . . . Parts Self-Destructed 48 | . . . . . . . . . . . . 8 9 . 9 . 11 6 . 5 . . . . . . . . Prevented 2 | . . . . . . . . . . . . . . . 1 . . 1 . . . . . . . . . . Parts Restored . | . . . . . . . . . . . . . . . . . . . . . . . . . . . . . Kills | -11 -10 -10 -10 -9 -8 -8 -8 -8 -6 -6 -6 -6 -6 -6 -5 -5 -5 -5 -5 -4 -4 -4 -4 -4 -4 -3 -2 -1 ------- Run | Yrd Mat Min Exi Min Mat Sto Rec Scr Fac Was Fac Low Low Zio Pro Fac Upp Upp Zhi Pro Fac Ext Cet Arc Hub Res Res Acc Combat Hostiles Destroyed 205 | . 10 7 . 2 . 14 . . 15 . 1 5 10 . 6 15 12 5 . 1 2 12 2 . 9 8 34 35 Melee 71 | . . . . . . . . . . . 1 4 2 . 2 12 1 . . 1 2 9 2 . 2 7 16 10 Guns 25 | . 8 3 . . . 14 . . . . . . . . . . . . . . . . . . . . . . Cannons 16 | . . . . . . . . . 14 . . . . . 1 . 1 . . . . . . . . . . . AOE 41 | . 2 4 . 2 . . . . 1 . . . 6 . 3 2 10 5 . . . 1 . . . . 2 3 Classes Destroyed 20 | 2 4 1 . . . 1 . . 3 . . . 2 . 2 1 . . . . . . . . 3 . 1 . Worker 16 | . . . . . . . . . 6 . . . . . . 1 . . . . . . . . 1 1 4 3 Builder 12 | . . . . . . 1 . . 4 . . . . . . 1 . . . . . 1 . . 1 . . 4 Tunneler 3 | 1 . . . . . . . . 1 . . . . . . 1 . . . . . . . . . . . . Hauler 19 | . 2 . . . . 5 . . 1 . . . . . . 4 . . . . 1 . . . . 1 5 . Recycler 12 | 1 . . . . . . . . 1 . . . . . . 1 . . . . . 2 . . 1 1 3 2 Minesweeper 5 | . . . . . . . . . . . . . 1 . 1 . . 1 . 2 . . . . . . . . Mechanic 2 | . . . . . . . . . . . . . . . . 1 . . . . . . . . . . 1 . Operator 1 | . . . . . . . . . . . . . . . . . . . . . . . . . 1 . . . Watcher 14 | . 3 . . . . . . . 1 . . . . . . . . . . . . 1 . . 2 2 3 2 Swarmer 54 | . 6 3 . 2 . 7 . . . . . . . . 4 3 10 5 . . . 1 . . . 4 9 . Grunt 52 | . 4 2 . . . 3 . . 4 . . 5 9 . . 4 . . . . . 3 . . 3 . 8 7 Brawler 2 | . . . . . . . . . . . . . 1 . . . . . . . . . . . . . 1 . Duelist 1 | . . . . . . . . . . . . . . . . . . . . . . . . . . . 1 . Sentry 26 | . . 2 . . . 4 . . 2 . . . . . 1 1 . . . . 2 5 . . 1 1 3 4 Specialist 6 | . . . . . . . . . . . . . . . . . . . . . . . . . 2 . . 4 Hunter 14 | . . . . . . . . . 2 . . . . . . . 2 . . . . 1 . . . . 2 7 Programmer 45 | . . . . . . . . . 7 . 1 . . . . 7 . . . 1 . . . . 2 3 10 14 Heavy 1 | . . . . . . . . . . . . . . . . . . . . . . . . . 1 . . . Behemoth 3 | . . . . . . . . . . . . . . . 1 . . . . . . 2 . . . . . . Cetus Guard 2 | . . . . . . . . . . . . . . . . . . . . . . . 2 . . . . . Decomposer 1 | . . . . . . . . . . . . 1 . . . . . . . . . . . . . . . . Samaritan 1 | . . . . . . . . . . . . . . . 1 . . . . . . . . . . . . . Best Kill Streak 11 | 1 3 3 . 2 . 8 . . 4 . 1 4 4 . 4 4 7 5 . 1 1 2 2 . 4 4 11 11 Combat Bots Only 8 | . 3 3 . 2 . 8 . . 4 . 1 4 4 . 4 4 7 5 . 1 1 2 2 . 4 4 8 5 Max Kills in Single Turn 5 | 1 2 3 . 2 . 1 . . 3 . 1 1 1 . 4 2 5 4 . 1 1 1 1 . 1 1 2 5 Gunslinging . | . . . . . . . . . . . . . . . . . . . . . . . . . . . . . Exploded 5 | . 2 3 . 2 . . . . 1 . . . 1 . 3 2 5 4 . . . 1 . . . . 2 2 Melee 1 | . . . . . . . . . . . 1 1 1 . 1 1 1 . . 1 1 1 1 . 1 1 1 1 Uniques/NPCs Destroyed . | . . . . . . . . . . . . . . . . . . . . . . . . . . . . . Combat | -11 -10 -10 -10 -9 -8 -8 -8 -8 -6 -6 -6 -6 -6 -6 -5 -5 -5 -5 -5 -4 -4 -4 -4 -4 -4 -3 -2 -1 -------- Run | Yrd Mat Min Exi Min Mat Sto Rec Scr Fac Was Fac Low Low Zio Pro Fac Upp Upp Zhi Pro Fac Ext Cet Arc Hub Res Res Acc Hostile Shots Fired 1432 | . 28 31 . . . 75 6 . 159 . 1 18 47 . 69 75 54 8 . 2 5 91 15 . 54 30 176 488 Missed 577 | . 10 6 . . . 25 2 . 52 . . 7 11 . 19 37 16 4 . 1 3 30 5 . 25 16 64 244 Deflected 3 | . . . . . . . . . . . . . . . . 1 . . . . . 1 . . 1 . . . Hits 855 | . 18 25 . . . 50 4 . 107 . 1 11 36 . 50 38 38 4 . 1 2 61 10 . 29 14 112 244 Melee 12 | . . . . . . . . . . . . . . . . . . . . . . 2 . . . . 7 3 Projectile 843 | . 18 25 . . . 50 4 . 107 . 1 11 36 . 50 38 38 4 . 1 2 59 10 . 29 14 105 241 AOE 7 | . . . . . . . . . . . . . . . . . . . . . . 4 . . . . . 3 Critical Strikes 34 | . . . . . . . . . 2 . . 4 2 . . 1 3 . . . . 4 1 . . . 7 10 Part Disruptions 6 | . . . . . . . 1 . . . . . . . . . . . . . . . . . . . . 5 Damage Taken 18058 | . 197 302 . . . 624 79 . 1869 . 97 165 621 . 1142 731 344 84 . 23 52 1617 229 250 657 319 2731 5925 Core 2796 | . 32 70 . . . 37 14 . 201 . . 43 44 . 163 102 58 17 . . . 182 24 . 51 24 125 1609 Absorbed by Shields 1301 | . . . . . . . . . . . . 46 131 . . 49 296 8 . . . 70 43 . . . 469 189 Redirected to Shielding 8 | . . . . . . 8 . . . . . . . . . . . . . . . . . . . . . . Ignored by Resistances 246 | . . . . . . . . . 69 . . . . . . . . . . . . . . . . . 129 48 Regen/Repaired (Parts) 2570 | . 38 . . . . 64 . . . . . . . 81 . 921 . . . . 401 . . . . 1065 . . Core Remaining (%) 79 | 100 . . . 59 . . . 90 . . . . . . 46 . . . . 82 . . . . 77 98 86 . Volleys Fired 249 | 8 25 15 . 1 . 60 1 . 52 . . . 13 . 6 16 14 4 . . 2 2 2 . 6 10 3 9 Largest 2 | 2 2 2 . 1 . 2 2 . 2 . . . 1 . 1 1 1 1 . . 1 1 1 . 1 1 1 1 Hottest 240 | 40 70 70 . 33 . 90 50 . 110 . . . 85 . 85 90 65 43 . . 65 65 240 . 240 80 80 120 Shots Fired 399 | 16 47 25 . 1 . 120 2 . 100 . . . 14 . 6 16 14 4 . . 2 2 2 . 6 10 3 9 Gun 248 | 16 44 22 . . . 120 2 . . . . . . . . 11 11 . . . 2 1 2 . 5 10 2 . Cannon 111 | . . . . . . . . . 100 . . . 1 . 4 3 . . . . . . . . . . . 3 Launcher 34 | . 3 3 . 1 . . . . . . . . 13 . . 2 1 4 . . . 1 . . 1 . 1 4 Special 6 | . . . . . . . . . . . . . . . 2 . 2 . . . . . . . . . . 2 Kinetic 280 | 16 39 10 . . . 113 2 . 100 . . . . . . . . . . . . . . . . . . . Thermal 79 | . 5 12 . . . 7 . . . . . . 1 . 4 14 11 . . . 2 1 2 . 5 10 2 3 Explosive 40 | . 3 3 . 1 . . . . . . . . 13 . 2 2 3 4 . . . 1 . . 1 . 1 6 Electromagnetic . | . . . . . . . . . . . . . . . . . . . . . . . . . . . . . Robot Hit Streak 14 | 3 7 14 . . . 9 6 . 9 . . . 6 . 1 1 1 1 . . . . . . 1 . . 2 Robot Miss Streak 5 | 3 2 1 . . . 5 . . 2 . . . 3 . 1 1 1 1 . . . 1 . . 1 . 1 2 Penetration Max . | . . . . . . . . . . . . . . . . . . . . . . . . . . . . . Secondary Targets 3 | . 1 . . . . 2 . . . . . . . . . . . . . . . . . . . . . . Max Gunslinging Chain 1 | . 1 . . . . 1 . . . . . . . . . . . . . . . . . . . . . . Shots Hit Robots 755 | 8 23 21 . . . 85 2 . 78 7 2 11 16 . 23 54 3 4 5 7 7 50 11 1 40 27 141 129 Core Hits 309 | 3 24 12 . 2 . 33 . . 28 4 1 7 20 . 11 22 13 5 2 3 5 18 3 1 18 8 38 28 Critical Kills 14 | . . . . . . . . . . . . 1 . . . . . . . . . . . . 2 1 6 4 Critical Parts Destroyed 78 | . . . . . . 1 . . . . . 1 . . 2 6 . 1 . . 1 2 1 . 8 6 19 30 Critical Strikes 121 | . . 1 . . . 1 . . 3 . . 2 . . 3 12 1 1 . . 2 8 3 . 10 8 30 36 Burn 1 | . . 1 . . . . . . . . . . . . . . . . . . . . . . . . . . Destroy 1 | . . . . . . 1 . . . . . . . . . . . . . . . . . . . . . . Blast 3 | . . . . . . . . . 3 . . . . . . . . . . . . . . . . . . . Smash 94 | . . . . . . . . . . . . 2 . . 3 6 . 1 . . 1 2 1 . 10 8 26 34 Sever 18 | . . . . . . . . . . . . . . . . 6 1 . . . 1 6 2 . . . . 2 Impale 4 | . . . . . . . . . . . . . . . . . . . . . . . . . . . 4 . Melee Attacks 1006 | . . . . . . 8 . . 48 8 21 13 13 . 31 110 5 2 5 11 21 66 12 1 53 61 259 258 Impact 625 | . . . . . . . . . . 1 3 7 7 . 7 31 2 2 . 2 9 25 4 . 43 51 205 226 Slashing 293 | . . . . . . 8 . . 48 7 18 6 6 . 12 79 3 . 5 9 12 39 8 1 . . . 32 Piercing 88 | . . . . . . . . . . . . . . . 12 . . . . . . 2 . . 10 10 54 . Sneak Attacks 67 | . . . . . . 1 . . 8 . 1 1 1 . 4 12 . 1 . 2 1 6 . . 2 5 17 5 Combat Hostiles 9 | . . . . . . . . . . . 1 . . . . . . . . . . 1 . . 1 2 4 . Follow-up Attacks 124 | . . . . . . . . . . . . 4 1 . 8 6 . . . . . 15 3 . 9 8 40 30 Martial Strikes 22 | . . . . . . . . . . . . . . . . 4 . . . . 2 2 . . 14 . . . Damage Inflicted 41461 | 123 406 508 . 65 . 1507 40 . 4015 715 122 614 1467 . 1568 3544 1205 586 538 494 356 2640 567 151 2576 1489 7803 8362 Guns 2213 | 123 289 232 . . . 1399 36 . . . . . . . . 31 . . . . . . . . 103 . . . Cannons 2591 | . . . . . . . . . 2591 . . . . . . . . . . . . . . . . . . . Explosions 6432 | . 104 250 . 65 . . . . 536 . . . 1015 . 478 222 1076 450 . . . 48 . . 674 . 239 1275 Melee 30035 | . . . . . . 100 . . 854 715 122 614 452 . 1045 3289 96 136 538 494 356 2592 567 151 1799 1489 7564 7062 Ramming 112 | . 13 26 . . . 8 4 . 34 . . . . . . 2 . . . . . . . . . . . 25 Kinetic 4418 | 123 236 92 . . . 1340 36 . 2591 . . . . . . . . . . . . . . . . . . . Thermal 811 | . 53 140 . . . 59 . . 425 . . . . . . 31 . . . . . . . . 103 . . . Explosive 5333 | . 104 250 . 65 . . . . 111 . . . 1015 . 478 222 1076 450 . . . 48 . . . . 239 1275 Electromagnetic 674 | . . . . . . . . . . . . . . . . . . . . . . . . . 674 . . . Impact 18993 | . . . . . . . . . . . . 260 292 . 338 1061 . 136 . . 62 746 129 . 1673 1337 6575 6384 Slashing 9541 | . . . . . . 100 . . 854 715 122 354 160 . 440 2228 129 . 538 494 294 1846 438 151 . . . 678 Piercing 1579 | . . . . . . . . . . . . . . . 312 . . . . . . . . . 126 152 989 . Highest Corruption 20 | . . . . . . 1 1 . 2 2 2 2 2 2 . 2 2 2 2 3 . 1 1 1 2 2 7 20 Average Corruption 2 | . . . . . . 1 1 . 1 2 2 2 2 2 . 1 2 2 2 2 . 1 1 1 1 2 4 5 Corruption Purged 8 | . . . . . . . . . . . . . . . . 1 . . . . . . . . . . . 7 Corruption Blocked . | . . . . . . . . . . . . . . . . . . . . . . . . . . . . . Effects 150 | . . . . . . 4 6 . 9 4 6 2 6 1 . 20 5 5 3 7 . 1 1 1 1 7 31 30 Message Errors 25 | . . . . . . . . . 2 1 2 1 . . . 4 2 . . . . 1 . . 1 2 4 5 Matter Fused 38 | . . . . . . 1 2 . 5 1 1 . 3 . . 2 1 1 . 3 . . 1 1 . 2 8 6 Heat Flow Errors 24 | . . . . . . . 1 . 1 . 2 1 . . . 5 . 2 2 2 . . . . . 1 5 2 Energy Discharges 25 | . . . . . . 1 2 . 1 . 1 . 2 . . 5 . 1 1 . . . . . . . 4 7 Parts Rejected 3 | . . . . . . . . . . . . . . . . 1 1 . . . . . . . . . . 1 Data Loss (minor) 18 | . . . . . . 1 . . . 1 . . . 1 . 1 1 1 . 1 . . . . . 2 6 3 Data Loss (major) 9 | . . . . . . . 1 . . . . . . . . 1 . . . 1 . . . . . . 3 3 Misfires 1 | . . . . . . . . . . . . . 1 . . . . . . . . . . . . . . . Alerts 4 | . . . . . . 1 . . . 1 . . . . . 1 . . . . . . . . . . 1 . Misdirections 3 | . . . . . . . . . . . . . . . . . . . . . . . . . . . . 3 Overload Shots 4 | . . . . . . . . . . . . . . . . . . . . . . . 2 . 2 . . . Effects 1 | . . . . . . . . . . . . . . . . . . . . . . . 1 . . . . . Energy Bleed 1 | . . . . . . . . . . . . . . . . . . . . . . . 1 . . . . . Overflow Damage 9042 | . . . . . . . . . 559 185 23 46 16 . 220 1012 35 163 173 228 62 380 53 . 632 508 2199 2548 Projectiles 138 | . . . . . . . . . 138 . . . . . . . . . . . . . . . . . . . Explosions 286 | . . . . . . . . . 74 . . . 2 . 11 46 35 68 . . . . . . 16 . . 34 Melee 8618 | . . . . . . . . . 347 185 23 46 14 . 209 966 . 95 173 228 62 380 53 . 616 508 2199 2514 Knockbacks 99 | . 1 . . . . . . . 15 . . 1 1 . 1 1 . 1 . . . 1 . . 11 4 22 40 Impact 83 | . 1 . . . . . . . . . . 1 1 . 1 1 . 1 . . . 1 . . 11 4 21 40 Kinetic 15 | . . . . . . . . . 15 . . . . . . . . . . . . . . . . . . . Secondary 1 | . . . . . . . . . . . . . . . . . . . . . . . . . . . 1 . Self-Inflicted Damage 803 | . 24 . . . . . . . 474 . . . 68 . . 99 . . . . . 17 . . 75 . 46 . Shots 16 | . 1 . . . . . . . 6 . . . 4 . . 2 . . . . . 1 . . 1 . 1 . Rammed 9 | . 1 6 . . . . 1 . 1 . . . . . . . . . . . . . . . . . . . Targets Rammed 12 | . 1 6 . . . 1 1 . 1 . . . . . . 1 . . . . . . . . . . . 1 Kicked 2 | . . . . . . . . . . . . . . . . 1 . . . . . . . . . . . 1 Crushed 1 | . . . . . . 1 . . . . . . . . . . . . . . . . . . . . . . Highest Temperature 324 | . 18 90 . . . 12 260 . 179 . 166 122 44 . 144 271 80 251 240 234 56 28 324 . 324 94 217 231 Average Temperature 67 | . 9 42 . . . 9 143 . 39 . 73 45 14 . 76 95 36 111 90 100 28 9 171 . 171 16 63 73 Received Heat Transfer 1798 | . 42 90 . . . 171 27 . 343 . . 138 266 . 135 42 . 24 . . 9 199 18 . 18 9 168 99 Effects 2 | . . . . . . . . . . . . . . . . 2 . . . . . . . . . . . . Interference 2 | . . . . . . . . . . . . . . . . 2 . . . . . . . . . . . . Siege Activations . | . . . . . . . . . . . . . . . . . . . . . . . . . . . . . Martial Activations 12 | . . . . . . . . . . . . . . . . 2 . . . . 2 3 . . 5 . . . Total Turns 226 | . . . . . . . . . . . . . . . . 24 . . . . 23 27 . . 152 . . . Longest Duration 81 | . . . . . . . . . . . . . . . . 21 . . . . 12 13 . . 81 . . . Shielding Activations . | . . . . . . . . . . . . . . . . . . . . . . . . . . . . . Robots Disrupted . | . . . . . . . . . . . . . . . . . . . . . . . . . . . . . Combat Hostiles . | . . . . . . . . . . . . . . . . . . . . . . . . . . . . . Robots Corrupted 70 | . . . . . . . . . . . . 1 2 . 1 4 . . . . 1 2 . . 8 5 23 23 Combat Hostiles 51 | . . . . . . . . . . . . 1 2 . . 1 . . . . . 1 . . 7 1 16 22 Parts Fried 95 | . . . . . . . . . 1 . . 2 3 . 1 7 . . . . . 1 . . 9 8 29 34 Impact Corruptions 214 | . . . . . . . . . 1 . . 1 2 . 4 11 . 1 . . 2 6 1 . 18 15 71 81 Robots Melted . | . . . . . . . . . . . . . . . . . . . . . . . . . . . . . Combat Hostiles . | . . . . . . . . . . . . . . . . . . . . . . . . . . . . . Parts Melted 10 | . 1 1 . . . . . . 3 . . . . . 1 . . . . . . 1 . . . . 1 2 Heat Transferred 1028 | . 148 481 . . . 75 . . 200 . . . . . . 37 . . . . . . . . 87 . . . Parts Sabotaged 1 | . . . . . . . . . . . . . . . . . . . . . . . . . . . 1 . Parts Stolen . | . . . . . . . . . . . . . . . . . . . . . . . . . . . . . Parts Stripped . | . . . . . . . . . . . . . . . . . . . . . . . . . . . . . Power Chain Reactions . | . . . . . . . . . . . . . . . . . . . . . . . . . . . . . Alert | -11 -10 -10 -10 -9 -8 -8 -8 -8 -6 -6 -6 -6 -6 -6 -5 -5 -5 -5 -5 -4 -4 -4 -4 -4 -4 -3 -2 -1 ------- Run | Yrd Mat Min Exi Min Mat Sto Rec Scr Fac Was Fac Low Low Zio Pro Fac Upp Upp Zhi Pro Fac Ext Cet Arc Hub Res Res Acc Maximum Alert Level 3 | . . . . . . . . . 2 . . . . . . 1 . . . . . 3 2 1 2 2 2 3 Low Security (%) 59 | 100 100 100 . 100 100 100 100 . 45 100 100 . . . . 85 . . . . 100 48 . 58 99 . 17 15 Level 1 29 | . . . . . . . . . 52 . . . . . . 14 . . . . . 19 72 41 . 84 40 63 Level 2 10 | . . . . . . . . . 1 . . . . . . . . . . . . 31 27 . . 15 42 18 Level 3 . | . . . . . . . . . . . . . . . . . . . . . . . . . . . . 1 Level 4 . | . . . . . . . . . . . . . . . . . . . . . . . . . . . . . Level 5 . | . . . . . . . . . . . . . . . . . . . . . . . . . . . . . High Security . | . . . . . . . . . . . . . . . . . . . . . . . . . . . . . Max Security . | . . . . . . . . . . . . . . . . . . . . . . . . . . . . . Peak Influence 754 | 5 117 75 . 125 21 169 14 . 404 108 30 . . . . 273 . . . . 30 696 436 270 452 473 692 754 Initial 471 | . . . . . 21 . . . . 108 . . . . . 6 . . . . . 9 378 132 88 471 159 310 Average 174 | . 33 15 . 43 3 80 . . 175 29 5 . . . . 80 . . . . 6 274 382 180 64 344 359 313 Influence Increases 9599 | 10 341 181 . 125 . 478 31 . 941 . 73 110 270 . 145 647 270 115 10 45 109 1325 153 212 1097 304 1200 1407 Destroy 0b10 Robot/C 4600 | . 200 140 . 40 . 280 . . 300 . 20 100 200 . 120 300 240 100 . 20 40 600 80 80 180 160 680 720 Destroy 0b10 Robot/NC 450 | 10 25 . . . . 30 . . 70 . . . 5 . 5 45 . 5 10 15 5 25 5 5 30 25 80 55 Destroy Leader 946 | . 50 20 . 10 . 70 . . 124 . 10 10 20 . 20 68 30 10 . 10 22 54 . . 54 36 144 184 Allied During Kill 745 | . . . . . . . . . . . . . . . . . . . . . . 602 51 85 . . . 7 Successful Hack 258 | . 12 . . . . 18 31 . 24 . 27 . . . . 24 . . . . 26 . . . . 34 62 . Disable Machine 765 | . 15 . . 75 . 30 . . 315 . . . . . . 30 . . . . . . 15 30 225 . . 30 Anti-Garrison Action 150 | . . . . . . . . . . . . . . . . . . . . . . . . . 150 . . . Destroy Structure 1265 | . 24 21 . . . 5 . . 93 . 16 . . . . 120 . . . . 16 44 2 12 428 34 174 276 Partial Spotted 60 | . 15 . . . . 15 . . . . . . . . . 15 . . . . . . . . . . . 15 Lose Combat Pursuer 360 | . . . . . . 30 . . 15 . . . 45 . . 45 . . . . . . . . 30 15 60 120 Influence Decreases 8845 | 10 341 181 . 70 55 476 33 . 630 311 73 110 214 56 134 409 355 270 19 45 89 668 499 289 453 917 967 1171 Entered New Map 1870 | . . . . . 34 . 2 . . 203 . . . 56 . 5 93 32 9 . . 11 299 199 166 427 126 208 Time Decay 5956 | 10 341 181 . 70 21 476 22 . 460 108 73 110 214 . 134 394 262 238 10 45 89 447 140 40 287 490 601 693 Lost Part 390 | . . . . . . . . . 20 . . . . . . 10 . . . . . 10 . 10 . . 90 250 Lost Ally 320 | . . . . . . . . . . . . . . . . . . . . . . 200 60 40 . . . 20 Purge Threat 309 | . . . . . . . 9 . 150 . . . . . . . . . . . . . . . . . 150 . Squads Dispatched 56 | . 1 . . . . 4 . . 9 . 1 . . . . 6 . . . . 1 1 . . 6 3 9 15 Investigation 4 | . . . . . . 1 . . 1 . . . . . . . . . . . . . . . 1 . . 1 Extermination 30 | . . . . . . . . . 6 . 1 . . . . 6 . . . . 1 . . . 1 3 5 7 Reinforcement 16 | . 1 . . . . 3 . . 2 . . . . . . . . . . . . . . . 2 . 2 6 Assault 6 | . . . . . . . . . . . . . . . . . . . . . . 1 . . 2 . 2 1 Garrison . | . . . . . . . . . . . . . . . . . . . . . . . . . . . . . Intercept . | . . . . . . . . . . . . . . . . . . . . . . . . . . . . . Searches Triggered . | . . . . . . . . . . . . . . . . . . . . . . . . . . . . . Construction Impeded 1 | . . . . . . . . . 1 . . . . . . . . . . . . . . . . . . . Haulers Reinforced 1 | . . . . . . . . . . . . . . . . . . . . . . . . . . . 1 . Active Scanning Responses . | . . . . . . . . . . . . . . . . . . . . . . . . . . . . . Cargo Convoy Interrupts . | . . . . . . . . . . . . . . . . . . . . . . . . . . . . . Stealth | -11 -10 -10 -10 -9 -8 -8 -8 -8 -6 -6 -6 -6 -6 -6 -5 -5 -5 -5 -5 -4 -4 -4 -4 -4 -4 -3 -2 -1 --------- Run | Yrd Mat Min Exi Min Mat Sto Rec Scr Fac Was Fac Low Low Zio Pro Fac Upp Upp Zhi Pro Fac Ext Cet Arc Hub Res Res Acc Distress Signals 16 | . 3 . . . . 3 . . 1 . . . . . . 1 . . . . . 1 1 . . . 1 5 Communications Jammed 114 | . . . . . . . . . . . . . . . . 7 . . . . . 87 . . 2 . 18 . Distress Signals 112 | . . . . . . . . . . . . . . . . 7 . . . . . 87 . . . . 18 . Times Spotted 355 | . 15 7 . . . 30 3 . 24 . 2 5 11 . 6 36 8 4 . 1 3 37 5 3 15 11 54 75 Peak Tracking Total 9 | . 4 3 . . . 5 2 . 3 . 1 4 4 . 4 5 7 1 . 1 1 5 5 3 9 4 7 9 Tactical Retreats 28 | . . . . . . 2 . . 1 . . . 2 . . 4 . . . . . . . . 2 1 4 12 ECM-based Alert Blocks 16 | . . . . . . . . . . . . . . . . 3 . . . . . . . . . . 2 11 Traps | -11 -10 -10 -10 -9 -8 -8 -8 -8 -6 -6 -6 -6 -6 -6 -5 -5 -5 -5 -5 -4 -4 -4 -4 -4 -4 -3 -2 -1 ------- Run | Yrd Mat Min Exi Min Mat Sto Rec Scr Fac Was Fac Low Low Zio Pro Fac Upp Upp Zhi Pro Fac Ext Cet Arc Hub Res Res Acc Traps Triggered 6 | . . . . . . . . . 2 . 1 . . . . 2 . . . . . . . . . . . 1 Indirectly . | . . . . . . . . . . . . . . . . . . . . . . . . . . . . . Trap Hack Attempts . | . . . . . . . . . . . . . . . . . . . . . . . . . . . . . Triggered . | . . . . . . . . . . . . . . . . . . . . . . . . . . . . . Disarmed . | . . . . . . . . . . . . . . . . . . . . . . . . . . . . . Reprogrammed . | . . . . . . . . . . . . . . . . . . . . . . . . . . . . . Reused . | . . . . . . . . . . . . . . . . . . . . . . . . . . . . . Traps Extracted . | . . . . . . . . . . . . . . . . . . . . . . . . . . . . . Installed 11 | . . . . . . . . . . . . . . . 11 . . . . . . . . . . . . . Triggered . | . . . . . . . . . . . . . . . . . . . . . . . . . . . . . Most Traps Carried 4 | . . . . . . . . . . . . . 1 . . . . . . 4 4 4 4 4 4 4 4 4 Machines | -11 -10 -10 -10 -9 -8 -8 -8 -8 -6 -6 -6 -6 -6 -6 -5 -5 -5 -5 -5 -4 -4 -4 -4 -4 -4 -3 -2 -1 ---------- Run | Yrd Mat Min Exi Min Mat Sto Rec Scr Fac Was Fac Low Low Zio Pro Fac Upp Upp Zhi Pro Fac Ext Cet Arc Hub Res Res Acc Machines Disabled 52 | . 1 . . 5 . 2 . . 21 . . . . . . 2 . . . . . . 1 2 16 . . 2 Max in Single Turn 15 | . 1 . . 5 . 1 . . 15 . . . . . . 2 . . . . . . 1 . 8 . . 1 Garrison Access 6 | . . . . . . 1 . . . . . . . . . . . . . . . . . . 1 1 . 3 Network Hub 2 | . . . . . . . . . . . . . . . . . . . . . . . . . 2 . . . Machines Repaired . | . . . . . . . . . . . . . . . . . . . . . . . . . . . . . Machines Dismantled . | . . . . . . . . . . . . . . . . . . . . . . . . . . . . . Machines Sabotaged . | . . . . . . . . . . . . . . . . . . . . . . . . . . . . . Overloaded Fab Kills . | . . . . . . . . . . . . . . . . . . . . . . . . . . . . . Hacking | -11 -10 -10 -10 -9 -8 -8 -8 -8 -6 -6 -6 -6 -6 -6 -5 -5 -5 -5 -5 -4 -4 -4 -4 -4 -4 -3 -2 -1 --------- Run | Yrd Mat Min Exi Min Mat Sto Rec Scr Fac Was Fac Low Low Zio Pro Fac Upp Upp Zhi Pro Fac Ext Cet Arc Hub Res Res Acc Machines Accessed 70 | . 7 . 2 . . 8 5 . 9 . 3 . . . . 9 . . 4 . 2 1 . 1 1 5 8 5 Terminals 28 | . 6 . . . . 5 5 . 3 . 3 . . . . . . . . . . . . . 1 1 2 2 Fabricators 8 | . . . . . . . . . 2 . . . . . . 3 . . . . . . . . . 1 2 . Repair Stations 10 | . 1 . . . . 2 . . . . . . . . . 4 . . . . 1 1 . . . 1 . . Recycling Units . | . . . . . . . . . . . . . . . . . . . . . . . . . . . . . Scanalyzers 6 | . . . . . . . . . 2 . . . . . . . . . . . . . . . . 1 3 . Garrison Access 11 | . . . . . . 1 . . 2 . . . . . . 2 . . . . 1 . . . . 1 1 3 Total Hacks 186 | . 18 . 2 . . 20 18 . 25 . 7 . . . . 20 . . 17 . 6 2 . 2 1 17 24 7 Successful 90 | . 13 . 2 . . 8 10 . 7 . 1 . . . . 7 . . 17 . 3 . . 2 1 8 8 3 Failed 94 | . 5 . . . . 12 7 . 17 . 6 . . . . 13 . . . . 3 2 . . . 9 16 4 Catastrophic 25 | . . . . . . 3 1 . 3 . 1 . . . . 4 . . . . 2 . . . . 2 5 4 Database Lockouts 2 | . . . . . . . 1 . 1 . . . . . . . . . . . . . . . . . . . Manual 50 | . 11 . 1 . . 10 11 . 4 . 1 . . . . 3 . . . . . . 1 . 1 5 2 . Terminals 75 | . 16 . . . . 14 18 . 6 . 7 . . . . 2 . . . . . . . . 1 5 3 3 Fabricators 24 | . . . . . . . . . 6 . . . . . . 6 . . . . . . . . . 6 6 . Repair Stations 26 | . 2 . . . . 5 . . . . . . . . . 10 . . . . 4 2 . . . 3 . . Recycling Units . | . . . . . . . . . . . . . . . . . . . . . . . . . . . . . Scanalyzers 25 | . . . . . . . . . 9 . . . . . . . . . . . . . . . . 2 14 . Garrison Access 15 | . . . . . . 1 . . 4 . . . . . . 2 . . . . 2 . . . . 1 1 4 Terminal Hacks 42 | . 4 . 2 . . 3 9 . 2 . 1 . . . . . . . 17 . . . . 2 . . 2 . Record 8 | . . . 1 . . . . . . . . . . . . . . . 5 . . . . 2 . . . . Part Schematic 5 | . . . . . . . 1 . . . . . . . . . . . 4 . . . . . . . . . Robot Analysis 7 | . 1 . . . . . 2 . . . . . . . . . . . 4 . . . . . . . . . Prototype ID Bank 8 | . 2 . . . . . 2 . . . . . . . . . . . 4 . . . . . . . . . Branch Access Points 1 | . . . . . . . . . . . 1 . . . . . . . . . . . . . . . . . Alert Level 3 | . . . . . . 1 1 . . . . . . . . . . . . . . . . . . . 1 . Unreport Threat 4 | . . . . . . . 2 . 1 . . . . . . . . . . . . . . . . . 1 . Locate Traps 3 | . 1 . . . . 1 . . 1 . . . . . . . . . . . . . . . . . . . Recall Reinforcements 1 | . . . . . . 1 . . . . . . . . . . . . . . . . . . . . . . Hauler Manifests 1 | . . . . . . . 1 . . . . . . . . . . . . . . . . . . . . . Proto ID Catalog 1 | . . . 1 . . . . . . . . . . . . . . . . . . . . . . . . . Fabricator Hacks 5 | . . . . . . . . . 1 . . . . . . 2 . . . . . . . . . 1 1 . Network Status 4 | . . . . . . . . . 1 . . . . . . 1 . . . . . . . . . 1 1 . Build 1 | . . . . . . . . . . . . . . . . 1 . . . . . . . . . . . . Repair Station Hacks 14 | . 2 . . . . 3 . . . . . . . . . 4 . . . . 3 . . . . 2 . . Scan Component 8 | . 1 . . . . 2 . . . . . . . . . 2 . . . . 2 . . . . 1 . . Repair 6 | . 1 . . . . 1 . . . . . . . . . 2 . . . . 1 . . . . 1 . . Recycling Unit Hacks . | . . . . . . . . . . . . . . . . . . . . . . . . . . . . . Scanalyzer 8 | . . . . . . . . . 3 . . . . . . . . . . . . . . . . . 5 . Insert Component 2 | . . . . . . . . . 2 . . . . . . . . . . . . . . . . . . . Retrieve Study 6 | . . . . . . . . . 1 . . . . . . . . . . . . . . . . . 5 . Garrison Access Hacks 5 | . . . . . . 1 . . . . . . . . . . . . . . . . . . . 1 . 3 Seal Access 5 | . . . . . . 1 . . . . . . . . . . . . . . . . . . . 1 . 3 Unauthorized Hacks 16 | . 7 . . . . 1 1 . 1 . . . . . . 1 . . . . . . . . 1 4 . . Terminals 10 | . 7 . . . . 1 1 . . . . . . . . . . . . . . . . . 1 . . . Assimilate 1 | . . . . . . 1 . . . . . . . . . . . . . . . . . . . . . . Botnet 3 | . 2 . . . . . 1 . . . . . . . . . . . . . . . . . . . . . Skim 5 | . 5 . . . . . . . . . . . . . . . . . . . . . . . . . . . Sabotage 1 | . . . . . . . . . . . . . . . . . . . . . . . . . 1 . . . Fabricators 5 | . . . . . . . . . 1 . . . . . . . . . . . . . . . . 4 . . Report 1 | . . . . . . . . . . . . . . . . . . . . . . . . . . 1 . . Liberate 2 | . . . . . . . . . 1 . . . . . . . . . . . . . . . . 1 . . Fabnet 1 | . . . . . . . . . . . . . . . . . . . . . . . . . . 1 . . Haulers 1 | . . . . . . . . . . . . . . . . . . . . . . . . . . 1 . . Repair Stations 1 | . . . . . . . . . . . . . . . . 1 . . . . . . . . . . . . Mechanics 1 | . . . . . . . . . . . . . . . . 1 . . . . . . . . . . . . Recycling Units . | . . . . . . . . . . . . . . . . . . . . . . . . . . . . . Scanalyzers . | . . . . . . . . . . . . . . . . . . . . . . . . . . . . . Garrison Access . | . . . . . . . . . . . . . . . . . . . . . . . . . . . . . Data Cores Recovered . | . . . . . . . . . . . . . . . . . . . . . . . . . . . . . Used . | . . . . . . . . . . . . . . . . . . . . . . . . . . . . . Hacking Detections 53 | . 6 . . . . 7 4 . 9 . 3 . . . . 10 . . . . 2 1 . . . 2 7 2 Full Trace Events 2 | . . . . . . 1 . . . . . . . . . . . . . . . . . . . . . 1 Feedback Events 1 | . . . . . . 1 . . . . . . . . . . . . . . . . . . . . . . Corruption 1 | . . . . . . 1 . . . . . . . . . . . . . . . . . . . . . . Feedback Blocked . | . . . . . . . . . . . . . . . . . . . . . . . . . . . . . Robot Schematics Acquired . | . . . . . . . . . . . . . . . . . . . . . . . . . . . . . Robots Built . | . . . . . . . . . . . . . . . . . . . . . . . . . . . . . Authchips . | . . . . . . . . . . . . . . . . . . . . . . . . . . . . . Time . | . . . . . . . . . . . . . . . . . . . . . . . . . . . . . Total Robot Build Rating . | . . . . . . . . . . . . . . . . . . . . . . . . . . . . . Part Schematics Acquired 5 | . . . . . . . 1 . . . . . . . . . . . 4 . . . . . . . . . Parts Built 2 | . . . . . . . . . . . . . . . . 2 . . . . . . . . . . . . Authchips . | . . . . . . . . . . . . . . . . . . . . . . . . . . . . . Time 69 | . . . . . . . . . . . . . . . . 69 . . . . . . . . . . . . Total Part Build Rating 18 | . . . . . . . . . . . . . . . . 18 . . . . . . . . . . . . Part Studies Acquired 6 | . . . . . . . . . 1 . . . . . . . . . . . . . . . . . 5 . Parts Repaired 6 | . 1 . . . . 1 . . . . . . . . . 2 . . . . 1 . . . . 1 . . Time 262 | . 26 . . . . 38 . . . . . . . . . 142 . . . . 28 . . . . 28 . . Parts Recycled . | . . . . . . . . . . . . . . . . . . . . . . . . . . . . . Recycled Matter . | . . . . . . . . . . . . . . . . . . . . . . . . . . . . . Retrieved Matter . | . . . . . . . . . . . . . . . . . . . . . . . . . . . . . Retrieved Components . | . . . . . . . . . . . . . . . . . . . . . . . . . . . . . Parts Scanalyzed 2 | . . . . . . . . . 2 . . . . . . . . . . . . . . . . . . . Part Schematics Acquired . | . . . . . . . . . . . . . . . . . . . . . . . . . . . . . Parts Damaged . | . . . . . . . . . . . . . . . . . . . . . . . . . . . . . Bothacking | -11 -10 -10 -10 -9 -8 -8 -8 -8 -6 -6 -6 -6 -6 -6 -5 -5 -5 -5 -5 -4 -4 -4 -4 -4 -4 -3 -2 -1 ------------ Run | Yrd Mat Min Exi Min Mat Sto Rec Scr Fac Was Fac Low Low Zio Pro Fac Upp Upp Zhi Pro Fac Ext Cet Arc Hub Res Res Acc Used RIF Installer . | . . . . . . . . . . . . . . . . . . . . . . . . . . . . . Robots Hacked 2 | . . . . . . . . . . . . . . . . . . . . . . . . . . . . 2 Non-combat . | . . . . . . . . . . . . . . . . . . . . . . . . . . . . . Combat 2 | . . . . . . . . . . . . . . . . . . . . . . . . . . . . 2 Robot Hacks Applied . | . . . . . . . . . . . . . . . . . . . . . . . . . . . . . Relay Couplers Released . | . . . . . . . . . . . . . . . . . . . . . . . . . . . . . Fabnet Peak Effective % 3 | . . . . . . . . . . . . . . . . . . . . . . . . . . . 3 1 Autooverrided 2 | . . . . . . . . . . . . . . . . . . . . . . . . . . . . 2 Robots Rewired 17 | . . . . . . . . . . . . . . . . . . . . . . 17 . . . . . . Allies Hacked . | . . . . . . . . . . . . . . . . . . . . . . . . . . . . . Hacks Repelled . | . . . . . . . . . . . . . . . . . . . . . . . . . . . . . Allies | -11 -10 -10 -10 -9 -8 -8 -8 -8 -6 -6 -6 -6 -6 -6 -5 -5 -5 -5 -5 -4 -4 -4 -4 -4 -4 -3 -2 -1 -------- Run | Yrd Mat Min Exi Min Mat Sto Rec Scr Fac Was Fac Low Low Zio Pro Fac Upp Upp Zhi Pro Fac Ext Cet Arc Hub Res Res Acc Total Allies 31 | . . . . . . . . . . . . . . . . 1 . . . . . 23 5 . . . . 2 Largest Group 15 | . . . . . . . . . . . . . . . . 1 . . . . . 15 8 8 . . . 1 Highest-Rated Group 733 | . . . . . . . . . . . . . . . . 26 . . . . . 733 719 719 . . . 82 Highest-Rated Ally 159 | . . . . . . . . . . . . . . . . 26 . . . . . 159 159 159 . . . 82 Total Orders 33 | . . . . . . . . . . . . . . . . 6 . . . . 1 17 1 . . 3 3 2 STAY 4 | . . . . . . . . . . . . . . . . . . . . . . 4 . . . . . . FOLLOW 4 | . . . . . . . . . . . . . . . . . . . . . . 4 . . . . . . RETURN 25 | . . . . . . . . . . . . . . . . 6 . . . . 1 9 1 . . 3 3 2 Ally Attacks 193 | . . . . . . . . . . . . . . . . . . . . . . 129 28 30 . . . 6 Total Damage 5232 | . . . . . . . . . . . . . . . . . . . . . . 3430 831 736 . . . 235 Kills 31 | . . . . . . . . . . . . . . . . . . . . . . 21 5 4 . . . 1 Allies Corrupted 1 | . . . . . . . . . . . . . . . . . . . . . . . . . . . . 1 Allies Melted . | . . . . . . . . . . . . . . . . . . . . . . . . . . . . . Intel | -11 -10 -10 -10 -9 -8 -8 -8 -8 -6 -6 -6 -6 -6 -6 -5 -5 -5 -5 -5 -4 -4 -4 -4 -4 -4 -3 -2 -1 ------- Run | Yrd Mat Min Exi Min Mat Sto Rec Scr Fac Was Fac Low Low Zio Pro Fac Upp Upp Zhi Pro Fac Ext Cet Arc Hub Res Res Acc Active Infowar (turns) 21243 | 50 887 984 363 . . . . . 2090 425 419 265 455 1233 545 2882 569 517 213 435 396 1468 291 91 677 1286 1921 2781 Optics 18884 | . . . . . . . . . 2090 425 419 265 455 1233 545 2807 569 517 213 435 396 1468 291 91 677 1286 1921 2781 IFF 1740 | . . . . . . . . . . . . . . . . . 544 507 212 421 56 . . . . . . . Seismic 2284 | 50 887 984 363 . . . . . . . . . . . . . . . . . . . . . . . . . Machine Analysis 4679 | . . . . . . . . . . . . . . . . . . . . . . . . . . . 1898 2781 Jamming 12080 | . . . . . . . . . . . . 201 413 1205 465 2686 549 517 211 435 396 1431 . . 611 1286 1674 . ECM 985 | . . . . . . . . . . . . . . . . 60 . . . . . . . . . . 208 717 Robot Analysis Total 7 | . 1 . . . . . 2 . . . . . . . . . . . 4 . . . . . . . . . Derelict Logs Recovered 7 | . . 1 . . . . . . . . . 1 1 1 . . 1 2 . . . . . . . . . . Drone Launches 25 | . . . . . . . . . . . . . . . . 6 . . . . 1 9 1 . . 3 3 2 Drone Recoveries 25 | . . . . . . . . . . . . . . . . 6 . . . . 1 9 1 . . 3 3 2 Exploration | -11 -10 -10 -10 -9 -8 -8 -8 -8 -6 -6 -6 -6 -6 -6 -5 -5 -5 -5 -5 -4 -4 -4 -4 -4 -4 -3 -2 -1 ------------- Run | Yrd Mat Min Exi Min Mat Sto Rec Scr Fac Was Fac Low Low Zio Pro Fac Upp Upp Zhi Pro Fac Ext Cet Arc Hub Res Res Acc Turns Passed 25216 | 161 1120 1050 363 277 171 1370 516 1074 2151 425 419 265 455 1233 545 2902 569 517 213 435 396 1468 291 91 677 1286 1921 2855 Spaces Moved 15263 | 78 615 608 226 169 102 633 287 628 1032 303 315 195 322 1043 327 1744 405 393 152 328 227 797 130 53 332 806 1172 1841 Core 127 | 4 . . . . . . . . . . . . . . . . . . . . . . . . . . . 123 Treads 4440 | 73 615 608 226 169 102 633 287 628 1032 67 . . . . . . . . . . . . . . . . . . Legs 10696 | 1 . . . . . . . . . 236 315 195 322 1043 327 1744 405 393 152 328 227 797 130 53 332 806 1172 1718 Wheels . | . . . . . . . . . . . . . . . . . . . . . . . . . . . . . Hover . | . . . . . . . . . . . . . . . . . . . . . . . . . . . . . Flight . | . . . . . . . . . . . . . . . . . . . . . . . . . . . . . Fastest Speed 50 | 50 160 160 160 160 160 155 170 170 163 115 115 115 115 115 115 116 125 125 125 125 125 125 125 125 125 126 116 50 Average Speed 132 | 153 160 160 160 160 160 162 171 170 165 126 115 115 115 115 115 122 125 125 125 125 126 125 125 125 131 126 119 114 Slowest Speed 250 | 160 160 160 160 160 160 170 250 170 214 215 115 115 115 115 115 250 125 125 125 125 250 250 125 125 250 126 212 212 Overloaded Moves 19 | . . . . . . . . . . . . . . . . 1 . . . . 1 3 . . 14 . . . Propulsion Burnouts . | . . . . . . . . . . . . . . . . . . . . . . . . . . . . . Robots Hopped . | . . . . . . . . . . . . . . . . . . . . . . . . . . . . . Potential Cave-ins 2 | . . . . . . . . . . . . . . . 2 . . . . . . . . . . . . . Cave-ins Triggered . | . . . . . . . . . . . . . . . . . . . . . . . . . . . . . Teleports 1 | . . . . . . . . . . . . . . . . . . . . . . . . . . . 1 . Exploration Rate (%) 54 | 6 94 99 60 51 11 85 84 56 31 96 16 38 49 84 50 54 57 55 63 56 8 86 77 85 23 33 37 50 Regions Visited 28 Branch Regions 18 Pre-discovered Areas 9 | . 1 1 1 . . . . 1 . . . . . 1 . . . 1 3 . . . . . . . . . Known Exits Taken 10 | . . . . . 1 . . . . . 1 1 1 . . 1 . . . 1 1 1 . . 1 . 1 . Unknown Exits Taken 16 | 1 1 1 1 1 . 1 1 1 . . . . . 1 1 . 1 1 1 . . . 1 1 . 1 . . Scrap Searched 16 | . . 1 . . . . . 4 . . . 1 3 . . . 4 1 . 2 . . . . . . . . Spaces Dug 291 | . 5 . . . . 4 . . 39 . 16 . 6 . 8 55 14 . . 2 8 5 . . 4 17 48 60 Terrain Destroyed 951 | . 21 23 . . . 4 . . 92 . 16 . 72 . 21 75 42 54 . 2 8 28 . . 321 17 59 96 Melee 248 | . . . . . . 4 . . 36 . 16 . 5 . 6 44 3 . . 2 6 4 . . 4 14 46 58 Projectile 66 | . . . . . . . . . 25 . . . 1 . 4 13 12 . . . 2 1 . . 1 3 2 2 AOE 637 | . 21 23 . . . . . . 31 . . . 66 . 11 18 27 54 . . . 23 . . 316 . 11 36 Terrain Rammed . | . . . . . . . . . . . . . . . . . . . . . . . . . . . . . Walls Destroyed . | . . . . . . . . . . . . . . . . . . . . . . . . . . . . . Machines Disabled . | . . . . . . . . . . . . . . . . . . . . . . . . . . . . . Actions | -11 -10 -10 -10 -9 -8 -8 -8 -8 -6 -6 -6 -6 -6 -6 -5 -5 -5 -5 -5 -4 -4 -4 -4 -4 -4 -3 -2 -1 --------- Run | Yrd Mat Min Exi Min Mat Sto Rec Scr Fac Was Fac Low Low Zio Pro Fac Upp Upp Zhi Pro Fac Ext Cet Arc Hub Res Res Acc Total 19011 | 101 706 657 229 175 111 878 307 634 1327 344 355 220 374 1077 447 2367 442 408 167 342 324 1236 252 77 536 1022 1592 2304 Wait 1876 | . 30 11 . 1 . 90 13 3 118 2 12 15 11 4 69 429 3 6 . . 68 183 97 24 162 125 186 214 Move 15234 | 77 614 607 225 168 101 632 286 627 1032 302 314 194 321 1042 326 1742 404 392 151 327 226 796 129 52 331 805 1171 1840 Hop . | . . . . . . . . . . . . . . . . . . . . . . . . . . . . . Pick Up 144 | 7 14 1 1 1 4 26 . 1 21 5 3 . 4 6 . 13 . . 1 1 4 2 4 . 2 8 9 6 Fast Attach 62 | 6 . . . . 1 2 2 . 2 2 1 . . 7 . 4 2 . 1 . 1 1 . . . 1 7 22 Attach 55 | 2 1 . . . 1 . . . 5 3 1 . 2 . 1 4 . . . . 2 2 . . 3 2 14 12 Detach 23 | 1 . . . . . . 1 . . 3 1 . . 3 . 1 1 . . . . . . . . . 9 3 Swap 296 | . 10 11 1 3 2 34 2 2 28 7 . 2 10 6 11 50 11 4 7 4 7 26 9 . 8 24 10 7 Drop 148 | . 11 6 2 1 2 25 1 1 20 13 5 . 2 9 . 13 2 . 2 1 3 3 3 . 2 7 7 7 Fire 249 | 8 25 15 . 1 . 60 1 . 52 . . . 13 . 6 16 14 4 . . 2 2 2 . 6 10 3 9 Melee 715 | . . . . . . 8 . . 48 7 18 9 11 . 23 91 5 2 5 9 11 39 8 1 22 40 176 182 Ram . | . . . . . . . . . . . . . . . . . . . . . . . . . . . . . Kick 2 | . . . . . . . . . . . . . . . . 1 . . . . . . . . . . . 1 Crush 10 | . 1 6 . . . 1 1 . 1 . . . . . . . . . . . . . . . . . . . Escape Stasis 4 | . . . . . . . . . . . . . . . . 3 . . . . . . . . . . . 1 Rewire 182 | . . . . . . . . . . . . . . . . . . . . . . 182 . . . . . . Trap 11 | . . . . . . . . . . . . . . . 11 . . . . . . . . . . . . . Miscellaneous . | . . . . . . . . . . . . . . . . . . . . . . . . . . . . . Route ------- -11/Scrapyard -10/Materials (discovered 5 exits: [*Mat x3] / [*Min] / *Sub) -10/Mines (discovered 4 exits: [*Mat x2] / *Exi / *Sub) -10/Exiles (discovered 2 exits: [*Min x2]) -9/Mines -8/Materials (discovered 3 exits: Fac x2 / *Sto) -8/Storage (discovered 2 exits: *Fac / *Rec) -8/Recycling (discovered 2 exits: *Fac / [*Scr]) -8/Scraptown -6/Factory -6/Waste -6/Factory (discovered 3 exits: *Fac / *Low x2) -6/Lower Caves -6/Lower Caves (discovered 2 exits: *Fac / *Zio) -6/Zion -5/Proximity Caves -5/Factory (discovered 6 exits: Fac x4 / *Upp x2) -5/Upper Caves -5/Upper Caves (discovered 2 exits: *Fac / *Zhi) -5/Zhirov -4/Proximity Caves -4/Factory -4/Extension (discovered 3 exits: *Res x2 / *Cet) -4/Cetus -4/Archives (discovered 2 exits: *Hub x2) -4/Hub_04(d) -3/Research (discovered 5 exits: *Res x2 / Arm / Qua x2) -2/Research (discovered 3 exits: *Acc x3) -1/Access (discovered 1 exit: Com) History --------- Turn | Location | Event 6 | -11/Scrapyard | Discovered new exit (range 16) 162 | -11/Scrapyard | Entered Materials 261 | -10/Materials | Discovered new exit (range 15) 317 | -10/Materials | Build established: Mutant 335 | -10/Materials | Discovered new exit (range 8) 515 | -10/Materials | Discovered new exit (range 3) 818 | -10/Materials | Discovered new exit (range 15) 888 | -10/Materials | Loaded intel: 11 interactive machine locations 930 | -10/Materials | Learned Storage stockpile data 958 | -10/Materials | Repaired Assault Rifle 964 | -10/Materials | Identified exit to Subcaves 964 | -10/Materials | Learned location of 2 exits from Materials 998 | -10/Materials | Learned 4 Recycling zone layouts 1282 | -10/Materials | Entered Mines 1290 | -10/Mines | Met a Derelict bent on vengeance 1340 | -10/Mines | Learned location of 1 exit from Materials 1439 | -10/Mines | Deemed a non-threat by the Exiles lab entrance 1439 | -10/Mines | Discovered new exit (range 5) 1507 | -10/Mines | Discovered new exit (range 15) 1575 | -10/Mines | Discovered new exit (range 9) 1684 | -10/Mines | Build established: Scavenger-Mutant 1773 | -10/Mines | Discovered exit to Subcaves (range 7) 1827 | -10/Mines | Learned location of Storage (-8) 1887 | -10/Mines | Found a hidden stash of uninstalled traps 2332 | -10/Mines | Entered Exiles 2356 | -10/Exiles | Discovered new exit (range 15) 2376 | -10/Exiles | Met 8R-AWN 2400 | -10/Exiles | Met EX-HEX 2443 | -10/Exiles | Met EX-BIN 2465 | -10/Exiles | Aligned with FarCom system 2467 | -10/Exiles | Given EX-Vault access code 2505 | -10/Exiles | Opened EX-Vault 2519 | -10/Exiles | Found Longsword +1 2555 | -10/Exiles | Warned to stay clear of 0b10 Research branches 2604 | -10/Exiles | Met EX-DEC 2612 | -10/Exiles | Learned location of Zion (-6) 2676 | -10/Exiles | Discovered new exit (range 14) 2695 | -10/Exiles | Left Exiles lab with Longsword +1 2695 | -10/Exiles | Entered Mines 2746 | -9/Mines | Received a Rocket Launcher from a helpful Derelict 2945 | -9/Mines | Discovered new exit (range 8) 2972 | -9/Mines | Entered Materials 2972 | -8/Materials | Evolved 4 slots: Propulsion x1, Utility x3 2973 | -8/Materials | Identified exit to Factory 2973 | -8/Materials | Identified exit to Storage 3143 | -8/Materials | Entered Storage 3318 | -8/Storage | Build established: Mutant 3398 | -8/Storage | Destroyed 8 combat bots 3720 | -8/Storage | Met 01-MTF 3952 | -8/Storage | Discovered exit to Factory (range 15) 4381 | -8/Storage | Repaired Minigun 4503 | -8/Storage | Used back door to open Recycling access 4503 | -8/Storage | Discovered new exit (range 5) 4513 | -8/Storage | Entered Recycling 4513 | -8/Recycling | Accompanied by 1 ally (01-MTF) 4829 | -8/Recycling | Discovered new exit (range 12) 4955 | -8/Recycling | Scanned before Scraplab entrance 5012 | -8/Recycling | Entered Scraplab 5027 | -8/Recycling | Discovered new exit (range 2) 5029 | -8/Recycling | Entered Scraptown 5029 | -8/Scraptown | System corruption cleaned by C-Scrubber 5477 | -8/Scraptown | Discovered new exit (range 13) 5530 | -8/Scraptown | Visited Fellowship of the Rings 5559 | -8/Scraptown | Visited Cave Peace 5596 | -8/Scraptown | Learned location of Extension (-4) 5759 | -8/Scraptown | Heard Great Nut preacher, LISTEN AND RECITE! 5807 | -8/Scraptown | Visited Spacefarers 5856 | -8/Scraptown | Visited The Evicted 5867 | -8/Scraptown | Visited Shadow of the Wyrm 5929 | -8/Scraptown | Turned away by UFD registrar 5991 | -8/Scraptown | Visited TADAMA 6103 | -8/Scraptown | Entered Factory 6103 | -6/Factory | Evolved 4 slots: Propulsion x1, Utility x3 6303 | -6/Factory | Central database locked down 7305 | -6/Factory | Discovered new exit (range 15) 8191 | -6/Factory | Build established: Scavenger-Mutant 8254 | -6/Factory | Sucked down chute 8254 | -6/Factory | Entered Waste 8254 | -6/Waste | The area was eerily silent 8518 | -6/Waste | Found Prototype Processor 8518 | -6/Waste | Identified Exp. Signal Interpreter 8569 | -6/Waste | Discovered new exit (range 14) 8661 | -6/Waste | Build established: Gladiator 8679 | -6/Waste | Entered Factory 8703 | -6/Factory | Identified exit to Lower Caves 8964 | -6/Factory | Discovered new exit (range 19) 9098 | -6/Factory | Entered Lower Caves 9336 | -6/Lower Caves | Identified exit to Lower Caves 9363 | -6/Lower Caves | Entered another Lower Caves area 9494 | -6/Lower Caves | Discovered new exit (range 4) 9788 | -6/Lower Caves | Identified exit to Zion 9818 | -6/Lower Caves | Entered Zion 9860 | -6/Zion | System corruption cleaned by Quarantine Array 9887 | -6/Zion | Found Prototype Special Weapon 9887 | -6/Zion | Identified RU-N14's Throwing Claymores 9894 | -6/Zion | Found RU-N14's Throwing Claymores 9945 | -6/Zion | Discovered new exit (range 15) 10197 | -6/Zion | Found Prototype Processor 10197 | -6/Zion | Identified Exp. Core Analyzer 10201 | -6/Zion | Found Prototype Processor 10201 | -6/Zion | Identified Exp. Armor Integrity Analyzer 10208 | -6/Zion | Found Prototype Processor 10208 | -6/Zion | Identified Spectral Analyzer 10211 | -6/Zion | Found Prototype Hackware 10211 | -6/Zion | Identified Exp. Hacking Suite 10421 | -6/Zion | Given the Hacking Drone Bay 10421 | -6/Zion | Found Prototype Device 10421 | -6/Zion | Identified Hacking Drone Bay 10506 | -6/Zion | Found CR-A16's Pointy Stick 10762 | -6/Zion | Learned 4 Factory zone layouts 11051 | -6/Zion | Entered Proximity Caves 11073 | -5/Proximity Caves | Attracted the attention of an 0b10 outpost 11164 | -5/Proximity Caves | Spotted B-75 Beast 11225 | -5/Proximity Caves | Core integrity fell below 50% 11235 | -5/Proximity Caves | Revealed the true nature of CR-A16's Pointy Stick 11235 | -5/Proximity Caves | Destroyed B-75 Beast 11584 | -5/Proximity Caves | Discovered new exit (range 10) 11596 | -5/Proximity Caves | Entered Factory 11596 | -5/Factory | Evolved 2 slots: Propulsion x1, Utility x1 11597 | -5/Factory | Identified exit to Factory 12300 | -5/Factory | Fabricated Enh. Quantum Rifle? 12323 | -5/Factory | Repaired Med. Armored Exoskeleton 12668 | -5/Factory | P-70 Sage assimilated allied Administrator 6a 13854 | -5/Factory | Identified exit to Upper Caves 14248 | -5/Factory | Allied Derelicts emerged from ambush trap array 14342 | -5/Factory | Repaired Broken Adv. Hardlight Generator 14498 | -5/Factory | Entered Upper Caves 14540 | -5/Upper Caves | Destroyed 7 combat bots 14754 | -5/Upper Caves | Encountered a Warlord checkpoint 14937 | -5/Upper Caves | Learned Factory trap positions 14960 | -5/Upper Caves | Build established: Mutant 15052 | -5/Upper Caves | Discovered new exit (range 13) 15067 | -5/Upper Caves | Entered another Upper Caves area 15068 | -5/Upper Caves | Encountered a Warlord checkpoint 15097 | -5/Upper Caves | Learned location of Warlord (-4) 15113 | -5/Upper Caves | Discovered exit to Factory (range 9) 15285 | -5/Upper Caves | Learned location of 1 exit from Factory 15578 | -5/Upper Caves | Discovered new exit (range 5) 15581 | -5/Upper Caves | Attracted the attention of an 0b10 checkpoint 15584 | -5/Upper Caves | Entered Zhirov 15586 | -5/Zhirov | Discovered new exit (range 3) 15632 | -5/Zhirov | Learned location of Quarantine (-3) 15632 | -5/Zhirov | Learned location of Testing (-2) 15632 | -5/Zhirov | Learned location of Command (-1) 15673 | -5/Zhirov | Found Alien Artifact 15673 | -5/Zhirov | Identified Integrated Reactor 15673 | -5/Zhirov | Installed Integrated Reactor, increased core energy generation (+10) 15751 | -5/Zhirov | Found Alien Artifact 15797 | -5/Zhirov | Entered Proximity Caves 15865 | -4/Proximity Caves | Build established: Gladiator 16134 | -4/Proximity Caves | Discovered exit to Factory (range 5) 16232 | -4/Proximity Caves | Entered Factory 16232 | -4/Factory | Evolved 2 slots: Utility x1, Weapon x1 16233 | -4/Factory | Identified exit to Extension 16234 | -4/Factory | Loaded intel: 89 trap records 16339 | -4/Factory | Spotted B-86 Titan 16385 | -4/Factory | Repaired Lyr. Heavy Armor Plating 16628 | -4/Factory | Entered Extension 16839 | -4/Extension | Identified exit to Research 17094 | -4/Extension | Rescued a captive Derelict 17194 | -4/Extension | Build established: Commander-Gladiator 17500 | -4/Extension | Spotted B-86 Titan 17508 | -4/Extension | Spotted B-86 Titan 17523 | -4/Extension | Destroyed B-86 Titan 17528 | -4/Extension | Destroyed B-86 Titan 17590 | -4/Extension | Identified exit to Cetus 17660 | -4/Extension | Rescued a captive Derelict 17714 | -4/Extension | Rescued a captive Derelict 17714 | -4/Extension | Rescued a captive Derelict 17808 | -4/Extension | Rescued A7 17878 | -4/Extension | First assault squad dispatched 17968 | -4/Extension | Lost 7 allies 17999 | -4/Extension | Rescued a captive Derelict 18096 | -4/Extension | Entered Cetus 18096 | -4/Cetus | Accompanied by 8 allies (A7) 18101 | -4/Cetus | Acquired a Cetus Manufacturing Module code from A7 18110 | -4/Cetus | Spotted Cetus Guard 18110 | -4/Cetus | Spotted Cetus Guard 18112 | -4/Cetus | Spotted Cetus Guard 18113 | -4/Cetus | Spotted Cetus Guard 18131 | -4/Cetus | Allies destroyed Cetus Guard 18135 | -4/Cetus | Destroyed Cetus Guard 18141 | -4/Cetus | Destroyed Cetus Guard 18142 | -4/Cetus | Allies destroyed Cetus Guard 18173 | -4/Cetus | Lost 5 allies 18217 | -4/Cetus | Started Cetus Manufacturing Module 18242 | -4/Cetus | Manufactured an Enhanced Grunt 18253 | -4/Cetus | Escorted A7 to Cetus Mainframe 18267 | -4/Cetus | Manufactured an Enhanced Grunt 18275 | -4/Cetus | Discovered new exit (range 22) 18292 | -4/Cetus | Manufactured an Enhanced Grunt 18317 | -4/Cetus | Manufactured an Enhanced Grunt 18342 | -4/Cetus | Manufactured an Enhanced Grunt 18387 | -4/Cetus | Entered Archives 18387 | -4/Archives | Accompanied by 8 allies (A7) 18392 | -4/Archives | Received a hacking code to weaken MAIN.C 18407 | -4/Archives | Met Zhirov 18407 | -4/Archives | Discovered new exit (range 22) 18413 | -4/Archives | Reinforcements dispatched to Archives 18414 | -4/Archives | Unable to access archive contents 18421 | -4/Archives | Discovered new exit (range 21) 18428 | -4/Archives | Read partially decrypted archive contents 18458 | -4/Archives | Reinforcements dispatched to Archives 18478 | -4/Archives | Zhirov detonated Archives 18478 | -4/Archives | Entered Hub_04(d) 18509 | -4/Hub_04(d) | Lost 7 allies 18774 | -4/Hub_04(d) | Build established: Gladiator 18911 | -4/Hub_04(d) | Discovered exit to Research (range 15) 19152 | -4/Hub_04(d) | Network Hub disabled 19155 | -4/Hub_04(d) | Network Hub disabled 19155 | -4/Hub_04(d) | Entered Research 19155 | -3/Research | Evolved 2 slots: Utility x2 19271 | -3/Research | Found Prototype Device 19309 | -3/Research | Identified Exp. Thermal Shield 19582 | -3/Research | Spotted B-86 Titan 20072 | -3/Research | Repaired Med. Armored Exoskeleton 20203 | -3/Research | Identified exit to Armory 20203 | -3/Research | Identified exit to Quarantine 20223 | -3/Research | Discovered new exit (range 13) 20366 | -3/Research | Discovered new exit (range 12) 20382 | -3/Research | Spotted B-86 Titan 20441 | -3/Research | Entered another Research area 20441 | -2/Research | Evolved 2 slots: Power x1, Utility x1 20690 | -2/Research | Spotted B-90 Cyclops 21075 | -2/Research | Build established: Scavenger-Gladiator 21103 | -2/Research | Found Exp. Core Analyzer 21646 | -2/Research | Build established: Scientist-Gladiator 21886 | -2/Research | Identified Transdimensional Reconstructor 21886 | -2/Research | Warped through subspace 21912 | -2/Research | Lost 3 parts (1n2u) 21940 | -2/Research | Identified exit to Access 21941 | -2/Research | First assault squad dispatched 22169 | -2/Research | Destroyed 8 combat bots 22362 | -2/Research | Entered Access 22362 | -1/Access | Evolved 2 slots: Utility x2 22412 | -1/Access | Build established: Gladiator 23128 | -1/Access | Spotted B-99 Colossus 23628 | -1/Access | Identified exit to Command 23718 | -1/Access | Lost 5 parts (1p1n3u) 24728 | -1/Access | Lost 4 parts (2p2u) 24822 | -1/Access | Lost 4 parts (1p3u) 24862 | -1/Access | First assault squad dispatched 25072 | -1/Access | Lost 3 parts (1n2u) 25143 | -1/Access | Core integrity fell below 50% 25143 | -1/Access | Released all parts (16) 25144 | -1/Access | System corruption reached 10% 25151 | -1/Access | Spotted B-99 Colossus 25151 | -1/Access | Spotted B-99 Colossus 25163 | -1/Access | Core integrity fell below 20% 25173 | -1/Access | Lost 5 parts (1p2u2w) 25217 | -1/Access | Destroyed by P-80 Master with Gamma Rifle Last Messages --------------- 25155_ Slug penetrates Wave Collapse Detector. 25159_ Penetrated by Slug. 25161_ Acquired 12 matter. 25162_ Wave Collapse Detector explodes. 25165_ Scanalyzer disabled. 25169_ Slug penetrates Wall. 25170_ Fabnet algorithm triggers H-88 Terminator IFF filter rewrite. 25170_ Slug penetrates H-88 Terminator. 25172_ Slug penetrates Wall. 25173_ Slug penetrates H-88 Terminator. 25175_ Penetrated by Slug. 25176_ Slug penetrates H-88 Terminator. 25180_ CHIKQXQQ